[Event "Titled Tuesday Blitz November 15 Late 2022"]
[White "Domingo Nunez, Alejandro"]
[Black "Steinberg, Nitzan"]
[WhiteFideId "22245561"]
[BlackFideId "2801795"]
[WhiteElo "2242"]
[BlackElo "2491"]
[Result "0-1"]
[Round "03"]
[TimeControl "180+1"]
[Date "2022.11.15"]
[WhiteClock "0:00:06"]
[BlackClock "0:00:06"]

1. Nf3 {[%clk 0:03:00]}  Nf6 {[%clk 0:02:59]} 2. g3 {[%clk 0:03:00]}  g6 {[%clk 0:03:00]} 3. Bg2 {[%clk 0:03:00]}  Bg7 {[%clk 0:03:00]} 4. O-O {[%clk 0:03:01]}  O-O {[%clk 0:03:01]} 5. d4 {[%clk 0:03:01]}  d6 {[%clk 0:03:01]} 6. b3 {[%clk 0:03:01]}  e5 {[%clk 0:03:01]} 7. dxe5 {[%clk 0:03:00]}  Ng4 {[%clk 0:03:01]} 8. Bb2 {[%clk 0:03:00]}  Nc6 {[%clk 0:03:00]} 9. c4 {[%clk 0:02:58]}  Ngxe5 {[%clk 0:02:55]} 10. Nc3 {[%clk 0:02:54]}  Nxf3+ {[%clk 0:02:51]} 11. exf3 {[%clk 0:02:55]}  Re8 {[%clk 0:02:49]} 12. f4 {[%clk 0:02:55]}  h5 {[%clk 0:02:49]} 13. Qd2 {[%clk 0:02:53]}  h4 {[%clk 0:02:49]} 14. Nd5 {[%clk 0:02:51]}  h3 {[%clk 0:02:40]} 15. Bf3 {[%clk 0:02:51]}  Be6 {[%clk 0:02:38]} 16. Bxg7 {[%clk 0:02:47]}  Kxg7 {[%clk 0:02:39]} 17. Qc3+ {[%clk 0:02:46]}  f6 {[%clk 0:02:39]} 18. Ne3 {[%clk 0:02:45]}  Qd7 {[%clk 0:02:36]} 19. Rad1 {[%clk 0:02:42]}  Rad8 {[%clk 0:02:24]} 20. g4 {[%clk 0:02:33]}  Qf7 {[%clk 0:02:17]} 21. Kh1 {[%clk 0:02:26]}  Bc8 {[%clk 0:02:02]} 22. Rg1 {[%clk 0:02:18]}  Rh8 {[%clk 0:02:01]} 23. Rg3 {[%clk 0:02:18]}  Rde8 {[%clk 0:02:00]} 24. g5 {[%clk 0:02:07]}  Ne7 {[%clk 0:01:33]} 25. Be4 {[%clk 0:02:04]}  Rh4 {[%clk 0:01:29]} 26. Rdg1 {[%clk 0:01:21]}  Rxf4 {[%clk 0:01:29]} 27. gxf6+ {[%clk 0:01:21]}  Qxf6 {[%clk 0:01:28]} 28. Rxg6+ {[%clk 0:01:21]}  Nxg6 {[%clk 0:01:25]} 29. Rxg6+ {[%clk 0:01:21]}  Kf7 {[%clk 0:01:25]} 30. Rxf6+ {[%clk 0:00:56]}  Rxf6 {[%clk 0:01:26]} 31. Nd5 {[%clk 0:00:29]}  Rxf2 {[%clk 0:01:14]} 32. Bg6+ {[%clk 0:00:29]}  Kg8 {[%clk 0:00:54]} 33. Bd3 {[%clk 0:00:16]}  Re5 {[%clk 0:00:34]} 34. Qc1 {[%clk 0:00:09]}  Bg4 {[%clk 0:00:26]} 35. Nf4 {[%clk 0:00:06]}  Kg7 {[%clk 0:00:14]} 36. Kg1 {[%clk 0:00:06]}  Rf3 {[%clk 0:00:13]} 37. Be2 {[%clk 0:00:06]}  Rxf4 {[%clk 0:00:11]} 38. Qxf4 {[%clk 0:00:05]}  Bxe2 {[%clk 0:00:12]} 39. Qg3+ {[%clk 0:00:05]}  Kf6 {[%clk 0:00:12]} 40. Qxh3 {[%clk 0:00:05]}  Re7 {[%clk 0:00:08]} 41. Qh4+ {[%clk 0:00:04]}  Kf7 {[%clk 0:00:08]} 42. Qh7+ {[%clk 0:00:04]}  Ke8 {[%clk 0:00:08]} 43. Qg8+ {[%clk 0:00:03]}  Kd7 {[%clk 0:00:08]} 44. Qb8 {[%clk 0:00:04]}  b6 {[%clk 0:00:08]} 45. Qxa7 {[%clk 0:00:03]}  Bf3 {[%clk 0:00:09]} 46. Qb8 {[%clk 0:00:03]}  Re8 {[%clk 0:00:08]} 47. Qa7 {[%clk 0:00:03]}  Ra8 {[%clk 0:00:08]} 48. Qxa8 {[%clk 0:00:03]}  Bxa8 {[%clk 0:00:09]} 49. Kf2 {[%clk 0:00:04]}  Ke6 {[%clk 0:00:09]} 50. Ke3 {[%clk 0:00:04]}  Ke5 {[%clk 0:00:08]} 51. b4 {[%clk 0:00:05]}  Be4 {[%clk 0:00:08]} 52. a4 {[%clk 0:00:05]}  Bg2 {[%clk 0:00:06]} 53. a5 {[%clk 0:00:05]}  bxa5 {[%clk 0:00:07]} 54. bxa5 {[%clk 0:00:06]}  Bf1 {[%clk 0:00:07]} 55. a6 {[%clk 0:00:03]}  Bxc4 {[%clk 0:00:06]} 56. a7 {[%clk 0:00:03]}  Bd5 {[%clk 0:00:07]} 57. h4 {[%clk 0:00:04]}  Kf5 {[%clk 0:00:06]} 58. Kd4 {[%clk 0:00:05]}  Ba8 {[%clk 0:00:06]} 59. Kc4 {[%clk 0:00:05]}  Kg4 {[%clk 0:00:06]} 60. Kb5 {[%clk 0:00:06]}  Kxh4 {[%clk 0:00:06]} 0-1


[Site "https://www.chess.com"]

[Event "Titled Tuesday Blitz November 15 Late 2022"]
[White "Dudzinski, Pawel"]
[Black "Bulgurlu, Okan"]
[WhiteFideId "1117890"]
[BlackFideId "6352316"]
[WhiteElo "2086"]
[BlackElo "2254"]
[Result "0-1"]
[Round "03"]
[TimeControl "180+1"]
[Date "2022.11.16"]
[WhiteClock "0:00:02"]
[BlackClock "0:00:20"]

1. e4 {[%clk 0:03:00]}  c5 {[%clk 0:02:59]} 2. Nc3 {[%clk 0:02:59]}  d6 {[%clk 0:02:59]} 3. g3 {[%clk 0:03:00]}  Nf6 {[%clk 0:02:58]} 4. Bg2 {[%clk 0:03:00]}  g6 {[%clk 0:02:59]} 5. d3 {[%clk 0:03:00]}  Bg7 {[%clk 0:03:00]} 6. h3 {[%clk 0:03:01]}  O-O {[%clk 0:03:00]} 7. Be3 {[%clk 0:03:01]}  Nc6 {[%clk 0:03:01]} 8. f4 {[%clk 0:03:02]}  Nd4 {[%clk 0:03:01]} 9. Qd2 {[%clk 0:03:01]}  Rb8 {[%clk 0:02:59]} 10. Nd1 {[%clk 0:03:02]}  e5 {[%clk 0:02:51]} 11. c3 {[%clk 0:02:59]}  Nc6 {[%clk 0:02:51]} 12. Ne2 {[%clk 0:02:43]}  d5 {[%clk 0:02:51]} 13. Bxc5 {[%clk 0:02:32]}  Re8 {[%clk 0:02:45]} 14. exd5 {[%clk 0:02:03]}  Nxd5 {[%clk 0:02:40]} 15. O-O {[%clk 0:02:02]}  b6 {[%clk 0:02:30]} 16. Ba3 {[%clk 0:01:39]}  Bb7 {[%clk 0:02:26]} 17. f5 {[%clk 0:01:31]}  Nc7 {[%clk 0:01:43]} 18. g4 {[%clk 0:01:27]}  e4 {[%clk 0:01:41]} 19. d4 {[%clk 0:01:24]}  Nb5 {[%clk 0:01:37]} 20. Ng3 {[%clk 0:01:08]}  Nxa3 {[%clk 0:01:32]} 21. bxa3 {[%clk 0:01:09]}  Nxd4 {[%clk 0:01:24]} 22. cxd4 {[%clk 0:01:07]}  Bxd4+ {[%clk 0:01:22]} 23. Ne3 {[%clk 0:00:59]}  Bxa1 {[%clk 0:01:07]} 24. Qxd8 {[%clk 0:00:55]}  Rbxd8 {[%clk 0:01:06]} 25. Rxa1 {[%clk 0:00:42]}  Rd3 {[%clk 0:01:06]} 26. Re1 {[%clk 0:00:18]}  Rxa3 {[%clk 0:01:05]} 27. f6 {[%clk 0:00:15]}  h6 {[%clk 0:01:02]} 28. Kh2 {[%clk 0:00:14]}  Rxa2 {[%clk 0:00:59]} 29. Kh1 {[%clk 0:00:08]}  b5 {[%clk 0:00:59]} 30. h4 {[%clk 0:00:06]}  b4 {[%clk 0:00:55]} 31. Nc4 {[%clk 0:00:04]}  Re6 {[%clk 0:00:34]} 32. Rb1 {[%clk 0:00:02]}  a5 {[%clk 0:00:27]} 33. g5 {[%clk 0:00:01]}  hxg5 {[%clk 0:00:21]} 34. hxg5 {[%clk 0:00:02]}  Bd5 {[%clk 0:00:20]} 0-1


[Site "https://www.chess.com"]

[Event "Titled Tuesday Blitz November 15 Late 2022"]
[White "Eljanov, Pavel"]
[Black "Nakamura, Hikaru"]
[WhiteFideId "14102951"]
[BlackFideId "2016192"]
[WhiteElo "2601"]
[BlackElo "2909"]
[Result "0-1"]
[Round "03"]
[TimeControl "180+1"]
[Date "2022.11.15"]
[WhiteClock "0:00:12"]
[BlackClock "0:00:26"]

1. c4 {[%clk 0:02:59]}  g6 {[%clk 0:03:00]} 2. g3 {[%clk 0:02:58]}  Nf6 {[%clk 0:02:58]} 3. Bg2 {[%clk 0:02:59]}  d5 {[%clk 0:02:58]} 4. cxd5 {[%clk 0:02:58]}  Nxd5 {[%clk 0:02:59]} 5. Nc3 {[%clk 0:02:59]}  Nb6 {[%clk 0:02:59]} 6. h4 {[%clk 0:02:55]}  Bg7 {[%clk 0:02:56]} 7. h5 {[%clk 0:02:55]}  Nc6 {[%clk 0:02:51]} 8. Nf3 {[%clk 0:02:50]}  Bg4 {[%clk 0:02:48]} 9. h6 {[%clk 0:02:43]}  Bf6 {[%clk 0:02:49]} 10. Ne4 {[%clk 0:02:36]}  Bd4 {[%clk 0:02:43]} 11. e3 {[%clk 0:02:28]}  f5 {[%clk 0:02:33]} 12. Neg5 {[%clk 0:02:21]}  Bf6 {[%clk 0:02:33]} 13. Qb3 {[%clk 0:02:11]}  Qd5 {[%clk 0:02:32]} 14. Ne6 {[%clk 0:02:05]}  Rc8 {[%clk 0:02:12]} 15. Qxd5 {[%clk 0:02:00]}  Nxd5 {[%clk 0:02:12]} 16. d4 {[%clk 0:01:57]}  Ndb4 {[%clk 0:01:33]} 17. O-O {[%clk 0:01:55]}  Nd8 {[%clk 0:01:31]} 18. Nf4 {[%clk 0:01:29]}  g5 {[%clk 0:01:28]} 19. Ne2 {[%clk 0:01:28]}  c5 {[%clk 0:01:16]} 20. Bd2 {[%clk 0:01:28]}  Nd3 {[%clk 0:01:13]} 21. Bc3 {[%clk 0:01:25]}  c4 {[%clk 0:01:00]} 22. Nc1 {[%clk 0:01:19]}  f4 {[%clk 0:00:48]} 23. Nxd3 {[%clk 0:01:12]}  cxd3 {[%clk 0:00:49]} 24. Rad1 {[%clk 0:01:06]}  Be6 {[%clk 0:00:40]} 25. a3 {[%clk 0:00:54]}  g4 {[%clk 0:00:36]} 26. Ne1 {[%clk 0:00:43]}  f3 {[%clk 0:00:37]} 27. Bh1 {[%clk 0:00:43]}  Nf7 {[%clk 0:00:33]} 28. Nxd3 {[%clk 0:00:41]}  Ng5 {[%clk 0:00:34]} 29. Nf4 {[%clk 0:00:32]}  Bb3 {[%clk 0:00:32]} 30. Rc1 {[%clk 0:00:29]}  Ne4 {[%clk 0:00:32]} 31. Bb4 {[%clk 0:00:26]}  Kf7 {[%clk 0:00:31]} 32. Nd3 {[%clk 0:00:19]}  Bc4 {[%clk 0:00:29]} 33. Rcd1 {[%clk 0:00:18]}  b6 {[%clk 0:00:29]} 34. Rfe1 {[%clk 0:00:16]}  a5 {[%clk 0:00:29]} 35. Bc3 {[%clk 0:00:17]}  Bb3 {[%clk 0:00:29]} 36. Rc1 {[%clk 0:00:17]}  Rhd8 {[%clk 0:00:29]} 37. Nf4 {[%clk 0:00:12]}  Rc6 {[%clk 0:00:26]} 0-1


[Site "https://www.chess.com"]

[Event "Titled Tuesday Blitz November 15 Late 2022"]
[White "Firouzja, Alireza"]
[Black "Sjugirov, Sanan"]
[WhiteFideId "12573981"]
[BlackFideId "4189302"]
[WhiteElo "2903"]
[BlackElo "2611"]
[Result "1-0"]
[Round "03"]
[TimeControl "180+1"]
[Date "2022.11.15"]
[WhiteClock "0:01:46"]
[BlackClock "0:00:02"]

1. d4 {[%clk 0:02:59]}  Nf6 {[%clk 0:02:58]} 2. Bg5 {[%clk 0:02:59]}  d5 {[%clk 0:02:57]} 3. e3 {[%clk 0:02:59]}  c5 {[%clk 0:02:55]} 4. Bxf6 {[%clk 0:02:58]}  gxf6 {[%clk 0:02:54]} 5. dxc5 {[%clk 0:02:58]}  e6 {[%clk 0:02:54]} 6. c4 {[%clk 0:02:58]}  dxc4 {[%clk 0:02:53]} 7. Nd2 {[%clk 0:02:59]}  c3 {[%clk 0:02:50]} 8. bxc3 {[%clk 0:02:59]}  Bxc5 {[%clk 0:02:50]} 9. Qh5 {[%clk 0:02:57]}  Be7 {[%clk 0:02:45]} 10. Ngf3 {[%clk 0:02:55]}  Nd7 {[%clk 0:02:40]} 11. Bc4 {[%clk 0:02:51]}  Nb6 {[%clk 0:02:17]} 12. Bb5+ {[%clk 0:02:48]}  Bd7 {[%clk 0:02:16]} 13. O-O {[%clk 0:02:45]}  Qc7 {[%clk 0:02:13]} 14. Bxd7+ {[%clk 0:02:44]}  Nxd7 {[%clk 0:02:12]} 15. Rab1 {[%clk 0:02:38]}  f5 {[%clk 0:02:03]} 16. Nd4 {[%clk 0:02:38]}  O-O {[%clk 0:01:57]} 17. N2f3 {[%clk 0:02:34]}  Kh8 {[%clk 0:01:40]} 18. Ng5 {[%clk 0:02:24]}  Bxg5 {[%clk 0:01:40]} 19. Qxg5 {[%clk 0:02:25]}  a6 {[%clk 0:01:17]} 20. Rfd1 {[%clk 0:02:24]}  Rad8 {[%clk 0:01:06]} 21. Qe7 {[%clk 0:02:24]}  Qc5 {[%clk 0:01:02]} 22. Qh4 {[%clk 0:02:24]}  b5 {[%clk 0:00:37]} 23. Nf3 {[%clk 0:02:24]}  f6 {[%clk 0:00:24]} 24. Nd4 {[%clk 0:02:16]}  Qc4 {[%clk 0:00:05]} 25. Rb4 {[%clk 0:02:14]}  Qxa2 {[%clk 0:00:05]} 26. Rbb1 {[%clk 0:02:09]}  Qc4 {[%clk 0:00:04]} 27. h3 {[%clk 0:02:07]}  Nc5 {[%clk 0:00:03]} 28. Qh6 {[%clk 0:02:04]}  Qd5 {[%clk 0:00:01]} 29. c4 {[%clk 0:01:54]}  Qb7 {[%clk 0:00:01]} 30. cxb5 {[%clk 0:01:50]}  axb5 {[%clk 0:00:02]} 31. Rdc1 {[%clk 0:01:46]} 1-0


[Site "https://www.chess.com"]

[Event "Titled Tuesday Blitz November 15 Late 2022"]
[White "Forgacs, Attila Jr."]
[Black "Rodriguez Santiago, Jaime"]
[WhiteFideId "773654"]
[BlackFideId "3100898"]
[WhiteElo "2168"]
[BlackElo "2025"]
[Result "1-0"]
[Round "03"]
[TimeControl "180+1"]
[Date "2022.11.16"]
[WhiteClock "0:01:49"]
[BlackClock "0:00:50"]

1. e4 {[%clk 0:03:00]}  c6 {[%clk 0:02:53]} 2. d4 {[%clk 0:03:00]}  d5 {[%clk 0:02:52]} 3. Nc3 {[%clk 0:03:00]}  dxe4 {[%clk 0:02:52]} 4. Nxe4 {[%clk 0:03:01]}  Nf6 {[%clk 0:02:52]} 5. Nxf6+ {[%clk 0:03:01]}  exf6 {[%clk 0:02:53]} 6. c3 {[%clk 0:03:01]}  Bd6 {[%clk 0:02:54]} 7. Qc2 {[%clk 0:03:02]}  O-O {[%clk 0:02:55]} 8. Bd3 {[%clk 0:03:02]}  Re8+ {[%clk 0:02:56]} 9. Ne2 {[%clk 0:03:02]}  h5 {[%clk 0:02:56]} 10. Be3 {[%clk 0:03:00]}  h4 {[%clk 0:02:56]} 11. O-O-O {[%clk 0:02:59]}  Nd7 {[%clk 0:02:56]} 12. g3 {[%clk 0:02:49]}  h3 {[%clk 0:02:51]} 13. Nf4 {[%clk 0:02:47]}  Nf8 {[%clk 0:02:50]} 14. Bf1 {[%clk 0:02:45]}  Bg4 {[%clk 0:02:43]} 15. Be2 {[%clk 0:02:36]}  Bd7 {[%clk 0:02:33]} 16. Rde1 {[%clk 0:02:13]}  b5 {[%clk 0:02:19]} 17. Bf1 {[%clk 0:02:13]}  Bxf4 {[%clk 0:02:14]} 18. gxf4 {[%clk 0:02:12]}  Qc8 {[%clk 0:02:14]} 19. Rg1 {[%clk 0:02:10]}  Bf5 {[%clk 0:02:13]} 20. Bd3 {[%clk 0:02:09]}  Be6 {[%clk 0:02:05]} 21. f5 {[%clk 0:02:08]}  Bd5 {[%clk 0:02:04]} 22. Rg3 {[%clk 0:01:59]}  Bg2 {[%clk 0:01:49]} 23. Rg1 {[%clk 0:01:55]}  a5 {[%clk 0:01:16]} 24. Bh6 {[%clk 0:01:52]}  g5 {[%clk 0:00:50]} 25. fxg6 {[%clk 0:01:50]}  Nxg6 {[%clk 0:00:50]} 26. Bxg6 {[%clk 0:01:49]} 1-0


[Site "https://www.chess.com"]

[Event "Titled Tuesday Blitz November 15 Late 2022"]
[White "Gubajdullin, Alexei"]
[Black "Brown, Andrew"]
[WhiteFideId "4141202"]
[BlackFideId "3206513"]
[WhiteElo "2230"]
[BlackElo "2245"]
[Result "1-0"]
[Round "03"]
[TimeControl "180+1"]
[Date "2022.11.16"]
[WhiteClock "0:00:07"]
[BlackClock "0:00:04"]

1. Nf3 {[%clk 0:02:59]}  g6 {[%clk 0:02:59]} 2. c4 {[%clk 0:02:55]}  Bg7 {[%clk 0:02:59]} 3. g3 {[%clk 0:02:54]}  c5 {[%clk 0:02:55]} 4. Bg2 {[%clk 0:02:54]}  Nc6 {[%clk 0:02:55]} 5. Nc3 {[%clk 0:02:52]}  h5 {[%clk 0:02:55]} 6. O-O {[%clk 0:02:50]}  d6 {[%clk 0:02:55]} 7. d3 {[%clk 0:02:39]}  Nh6 {[%clk 0:02:55]} 8. Rb1 {[%clk 0:02:30]}  Nf5 {[%clk 0:02:52]} 9. h3 {[%clk 0:02:25]}  O-O {[%clk 0:02:20]} 10. Ne4 {[%clk 0:02:14]}  Rb8 {[%clk 0:02:15]} 11. a3 {[%clk 0:02:14]}  b5 {[%clk 0:02:00]} 12. cxb5 {[%clk 0:02:07]}  Rxb5 {[%clk 0:02:00]} 13. Qa4 {[%clk 0:02:07]}  Rb6 {[%clk 0:01:49]} 14. e3 {[%clk 0:01:59]}  Bd7 {[%clk 0:01:45]} 15. Qc2 {[%clk 0:01:50]}  Qc8 {[%clk 0:01:41]} 16. b3 {[%clk 0:01:38]}  a5 {[%clk 0:01:24]} 17. Bb2 {[%clk 0:01:34]}  Bxb2 {[%clk 0:00:54]} 18. Rxb2 {[%clk 0:01:34]}  f6 {[%clk 0:00:53]} 19. Nc3 {[%clk 0:01:14]}  Be6 {[%clk 0:00:49]} 20. Ne2 {[%clk 0:01:13]}  g5 {[%clk 0:00:40]} 21. d4 {[%clk 0:01:07]}  cxd4 {[%clk 0:00:38]} 22. exd4 {[%clk 0:01:07]}  d5 {[%clk 0:00:28]} 23. Rc1 {[%clk 0:00:57]}  Qd7 {[%clk 0:00:28]} 24. Qd1 {[%clk 0:00:43]}  Rfb8 {[%clk 0:00:27]} 25. Nc3 {[%clk 0:00:39]}  Ng7 {[%clk 0:00:23]} 26. Na4 {[%clk 0:00:37]}  Bxh3 {[%clk 0:00:11]} 27. Nxb6 {[%clk 0:00:35]}  Rxb6 {[%clk 0:00:12]} 28. Rc5 {[%clk 0:00:25]}  Bxg2 {[%clk 0:00:11]} 29. Kxg2 {[%clk 0:00:25]}  h4 {[%clk 0:00:12]} 30. Rbc2 {[%clk 0:00:20]}  h3+ {[%clk 0:00:11]} 31. Kh2 {[%clk 0:00:18]}  Nd8 {[%clk 0:00:09]} 32. Rc7 {[%clk 0:00:16]}  Qf5 {[%clk 0:00:08]} 33. Ng1 {[%clk 0:00:13]}  Rxb3 {[%clk 0:00:08]} 34. Rxe7 {[%clk 0:00:12]}  g4 {[%clk 0:00:06]} 35. Rce2 {[%clk 0:00:11]}  Nde6 {[%clk 0:00:05]} 36. Qd2 {[%clk 0:00:11]}  Rd3 {[%clk 0:00:05]} 37. Qh6 {[%clk 0:00:10]}  Rxd4 {[%clk 0:00:05]} 38. R2xe6 {[%clk 0:00:08]}  Nxe6 {[%clk 0:00:03]} 39. Re8+ {[%clk 0:00:07]}  Kf7 {[%clk 0:00:04]} 40. Rb8 {[%clk 0:00:07]}  Qg5 {[%clk 0:00:02]} 41. Rb7+ {[%clk 0:00:06]}  Ke8 {[%clk 0:00:01]} 42. Qh8+ {[%clk 0:00:06]}  Nf8 {[%clk 0:00:02]} 43. Rb8+ {[%clk 0:00:06]}  Kd7 {[%clk 0:00:03]} 44. Qxf8 {[%clk 0:00:06]}  Qe5 {[%clk 0:00:03]} 45. Qd8+ {[%clk 0:00:05]}  Kc6 {[%clk 0:00:03]} 46. Qb6+ {[%clk 0:00:06]}  Kd7 {[%clk 0:00:04]} 47. Rb7+ {[%clk 0:00:06]}  Ke8 {[%clk 0:00:04]} 48. Qc6+ {[%clk 0:00:07]}  Kf8 {[%clk 0:00:04]} 49. Qc5+ {[%clk 0:00:07]}  Kg8 {[%clk 0:00:04]} 50. Qc8+ {[%clk 0:00:07]} 1-0


[Site "https://www.chess.com"]

[Event "Titled Tuesday Blitz November 15 Late 2022"]
[White "Hansen, Sune Berg"]
[Black "Tan, Ralph"]
[WhiteFideId "1400266"]
[BlackFideId "30966590"]
[WhiteElo "2731"]
[BlackElo "2059"]
[Result "1-0"]
[Round "03"]
[TimeControl "180+1"]
[Date "2022.11.16"]
[WhiteClock "0:00:28"]
[BlackClock "0:00:03"]

1. e4 {[%clk 0:03:00]}  e6 {[%clk 0:03:00]} 2. d3 {[%clk 0:03:00]}  d5 {[%clk 0:02:59]} 3. Nd2 {[%clk 0:03:00]}  c5 {[%clk 0:02:58]} 4. Ngf3 {[%clk 0:03:00]}  Nf6 {[%clk 0:02:58]} 5. g3 {[%clk 0:03:01]}  Nc6 {[%clk 0:02:59]} 6. Bg2 {[%clk 0:03:01]}  Be7 {[%clk 0:02:58]} 7. O-O {[%clk 0:03:01]}  O-O {[%clk 0:02:59]} 8. a4 {[%clk 0:03:00]}  b6 {[%clk 0:02:35]} 9. Re1 {[%clk 0:03:00]}  Bb7 {[%clk 0:02:34]} 10. e5 {[%clk 0:02:58]}  Nd7 {[%clk 0:02:35]} 11. Nf1 {[%clk 0:02:58]}  a6 {[%clk 0:02:25]} 12. h4 {[%clk 0:02:58]}  b5 {[%clk 0:02:25]} 13. N1h2 {[%clk 0:02:55]}  Re8 {[%clk 0:02:13]} 14. Ng4 {[%clk 0:02:50]}  f5 {[%clk 0:02:00]} 15. exf6 {[%clk 0:02:48]}  Nxf6 {[%clk 0:01:55]} 16. Ng5 {[%clk 0:02:41]}  Nxg4 {[%clk 0:00:48]} 17. Qxg4 {[%clk 0:02:40]}  Bxg5 {[%clk 0:00:47]} 18. Bxg5 {[%clk 0:02:38]}  Qd7 {[%clk 0:00:45]} 19. c3 {[%clk 0:02:32]}  Qf7 {[%clk 0:00:34]} 20. h5 {[%clk 0:02:24]}  b4 {[%clk 0:00:22]} 21. Re2 {[%clk 0:01:51]}  bxc3 {[%clk 0:00:09]} 22. bxc3 {[%clk 0:01:51]}  Rac8 {[%clk 0:00:06]} 23. Rae1 {[%clk 0:01:38]}  e5 {[%clk 0:00:06]} 24. Rb2 {[%clk 0:01:32]}  e4 {[%clk 0:00:06]} 25. dxe4 {[%clk 0:01:23]}  Ne5 {[%clk 0:00:06]} 26. Qf5 {[%clk 0:00:54]}  Qxf5 {[%clk 0:00:03]} 27. exf5 {[%clk 0:00:55]}  Bc6 {[%clk 0:00:03]} 28. Rbe2 {[%clk 0:00:51]}  Nf7 {[%clk 0:00:01]} 29. Rxe8+ {[%clk 0:00:49]}  Rxe8 {[%clk 0:00:01]} 30. Rxe8+ {[%clk 0:00:49]}  Bxe8 {[%clk 0:00:02]} 31. Bxd5 {[%clk 0:00:49]}  Bxa4 {[%clk 0:00:03]} 32. Be3 {[%clk 0:00:48]}  Bb5 {[%clk 0:00:02]} 33. Bxc5 {[%clk 0:00:47]}  h6 {[%clk 0:00:03]} 34. f4 {[%clk 0:00:44]}  Bd7 {[%clk 0:00:03]} 35. g4 {[%clk 0:00:44]}  a5 {[%clk 0:00:03]} 36. Kf2 {[%clk 0:00:40]}  Be8 {[%clk 0:00:03]} 37. Be7 {[%clk 0:00:29]}  Kh8 {[%clk 0:00:03]} 38. Ke3 {[%clk 0:00:28]} 1-0


[Site "https://www.chess.com"]

[Event "Titled Tuesday Blitz November 15 Late 2022"]
[White "Harshavardhan G B"]
[Black "Pranav, V"]
[WhiteFideId "25059009"]
[BlackFideId "25060783"]
[WhiteElo "2333"]
[BlackElo "2430"]
[Result "0-1"]
[Round "03"]
[TimeControl "180+1"]
[Date "2022.11.15"]
[WhiteClock "0:00:15"]
[BlackClock "0:00:10"]

1. d4 {[%clk 0:03:00]}  Nf6 {[%clk 0:02:59]} 2. c4 {[%clk 0:03:01]}  e6 {[%clk 0:03:00]} 3. Nf3 {[%clk 0:03:00]}  Bb4+ {[%clk 0:03:00]} 4. Nbd2 {[%clk 0:03:00]}  b6 {[%clk 0:02:59]} 5. a3 {[%clk 0:02:58]}  Bxd2+ {[%clk 0:02:59]} 6. Qxd2 {[%clk 0:02:56]}  Bb7 {[%clk 0:03:00]} 7. g3 {[%clk 0:02:55]}  O-O {[%clk 0:03:01]} 8. Bg2 {[%clk 0:02:55]}  a5 {[%clk 0:03:01]} 9. b3 {[%clk 0:02:54]}  d6 {[%clk 0:03:01]} 10. O-O {[%clk 0:02:54]}  Nbd7 {[%clk 0:03:01]} 11. Bb2 {[%clk 0:02:54]}  Re8 {[%clk 0:02:58]} 12. b4 {[%clk 0:02:50]}  Be4 {[%clk 0:02:52]} 13. Rfd1 {[%clk 0:02:47]}  Qb8 {[%clk 0:02:52]} 14. Qc3 {[%clk 0:02:44]}  Qb7 {[%clk 0:02:49]} 15. Bh3 {[%clk 0:02:39]}  axb4 {[%clk 0:02:47]} 16. axb4 {[%clk 0:02:38]}  b5 {[%clk 0:02:48]} 17. c5 {[%clk 0:02:32]}  Nd5 {[%clk 0:02:25]} 18. Qb3 {[%clk 0:02:18]}  N5f6 {[%clk 0:01:52]} 19. Nd2 {[%clk 0:02:15]}  Bd5 {[%clk 0:01:52]} 20. Qc3 {[%clk 0:02:11]}  Rxa1 {[%clk 0:01:42]} 21. Rxa1 {[%clk 0:02:09]}  Ra8 {[%clk 0:01:27]} 22. f3 {[%clk 0:01:59]}  Rxa1+ {[%clk 0:01:26]} 23. Bxa1 {[%clk 0:02:00]}  Bc6 {[%clk 0:01:22]} 24. e4 {[%clk 0:01:58]}  Qa8 {[%clk 0:01:11]} 25. Bb2 {[%clk 0:01:50]}  Nf8 {[%clk 0:00:53]} 26. Nb3 {[%clk 0:01:41]}  Bd7 {[%clk 0:00:45]} 27. Na5 {[%clk 0:01:37]}  h5 {[%clk 0:00:40]} 28. Bg2 {[%clk 0:01:36]}  Ng6 {[%clk 0:00:36]} 29. h4 {[%clk 0:01:35]}  Qb8 {[%clk 0:00:26]} 30. Bc1 {[%clk 0:01:21]}  c6 {[%clk 0:00:22]} 31. cxd6 {[%clk 0:01:13]}  Qxd6 {[%clk 0:00:23]} 32. Kf2 {[%clk 0:01:01]}  e5 {[%clk 0:00:22]} 33. Be3 {[%clk 0:01:00]}  Be8 {[%clk 0:00:17]} 34. Nb7 {[%clk 0:01:00]}  Qb8 {[%clk 0:00:15]} 35. Nc5 {[%clk 0:00:58]}  Nd7 {[%clk 0:00:15]} 36. Nxd7 {[%clk 0:00:56]}  Bxd7 {[%clk 0:00:16]} 37. dxe5 {[%clk 0:00:56]}  Nxe5 {[%clk 0:00:16]} 38. Qd4 {[%clk 0:00:52]}  Qe8 {[%clk 0:00:10]} 39. Bf4 {[%clk 0:00:48]}  Nc4 {[%clk 0:00:10]} 40. Bf1 {[%clk 0:00:47]}  Be6 {[%clk 0:00:10]} 41. Kg1 {[%clk 0:00:45]}  f6 {[%clk 0:00:09]} 42. Be2 {[%clk 0:00:41]}  Kh7 {[%clk 0:00:09]} 43. Kf2 {[%clk 0:00:40]}  Kg8 {[%clk 0:00:09]} 44. Qc5 {[%clk 0:00:38]}  Bf7 {[%clk 0:00:09]} 45. Qa7 {[%clk 0:00:37]}  Qd8 {[%clk 0:00:09]} 46. Kg2 {[%clk 0:00:32]}  Qe8 {[%clk 0:00:07]} 47. Qc7 {[%clk 0:00:31]}  Qa8 {[%clk 0:00:08]} 48. Bf1 {[%clk 0:00:22]}  Qa2+ {[%clk 0:00:08]} 49. Kg1 {[%clk 0:00:22]}  Qa3 {[%clk 0:00:07]} 50. Bg2 {[%clk 0:00:22]}  Qxb4 {[%clk 0:00:07]} 51. Qxc6 {[%clk 0:00:21]}  Qb1+ {[%clk 0:00:06]} 52. Kh2 {[%clk 0:00:20]}  Qb2 {[%clk 0:00:07]} 53. Qc8+ {[%clk 0:00:20]}  Kh7 {[%clk 0:00:08]} 54. Qc7 {[%clk 0:00:20]}  Bg6 {[%clk 0:00:07]} 55. Kg1 {[%clk 0:00:18]}  Ne5 {[%clk 0:00:07]} 56. Bxe5 {[%clk 0:00:17]}  fxe5 {[%clk 0:00:08]} 57. f4 {[%clk 0:00:17]}  Qd4+ {[%clk 0:00:06]} 58. Kh2 {[%clk 0:00:17]}  Bxe4 {[%clk 0:00:07]} 59. Bxe4+ {[%clk 0:00:15]}  Qxe4 {[%clk 0:00:08]} 60. fxe5 {[%clk 0:00:16]}  b4 {[%clk 0:00:08]} 61. Qb6 {[%clk 0:00:15]}  Qc2+ {[%clk 0:00:08]} 62. Kh3 {[%clk 0:00:15]}  b3 {[%clk 0:00:09]} 63. e6 {[%clk 0:00:15]}  b2 {[%clk 0:00:10]} 64. e7 {[%clk 0:00:15]}  b1=Q {[%clk 0:00:10]} 0-1


[Site "https://www.chess.com"]